Cogmind - Beta 12 @@@ ROGUE MODE // 2023.08.14 @ 17:43:24 Player: morimori Result: Destroyed by EMP Trap Performance ------------- Evolutions (0) 0 Regions Visited (1) 200 Robots Destroyed (19) 95 Value Destroyed (307) 307 Prototype IDs (0) 0 Alien Tech Used (0) 0 Bonus (0) 0 TOTAL SCORE: 602 Bonus ------- None Cogmind --------- Core Integrity 0/250 Matter 300/300 Energy 100/100 System Corruption 1% Temperature Cool (24) Movement Rolling (130) Ox2 Location -10/Materials Parts ------- > --- POWER (1) -------- (None) > --- PROPULSION (2) --- Compact Wheel Compact Wheel > --- UTILITY (2) ------ Huge Storage Unit Structural Scanner > --- WEAPON (2) ------- Assault Rifle > --- INVENTORY (25) --- Light Ion Engine Light Ion Engine Light Ion Engine Light Ion Engine Light Treads Aluminum Leg Aluminum Leg Aluminum Leg Aluminum Leg Wheel Hover Unit Flight Unit Heat Sink Small Storage Unit Medium Laser Small Laser Beam Cannon Light Assault Rifle Mining Laser Welding Torch Peak State ------------ > --- POWER ------------ Light Ion Engine > --- PROPULSION ------- Compact Wheel Compact Wheel > --- UTILITY ---------- Small Storage Unit Improved Terrain Scanner > --- WEAPON ----------- Assault Rifle Light Assault Rifle > --- INVENTORY -------- Light Ion Engine Wheel Compact Wheel Light Assault Rifle Mining Laser [Rating: 9] Favorites ----------- Power Light Ion Engine Engine Light Ion Engine Propulsion Compact Wheel Wheel Compact Wheel Utility Structural Scanner Device Structural Scanner Storage Huge Storage Unit Weapon Assault Rifle Energy Gun Medium Laser Ballistic Gun Assault Rifle Special Weapon Welding Torch Build | -11 -10 ------- Run | Jun Mat Slots Evolved . | . . Power . | . . Propulsion . | . . Utility . | . . Weapon . | . . Parts Attached 12 | 7 5 Power 1 | 1 . Engine 1 | 1 . Core . | . . Reactor . | . . Propulsion 3 | 2 1 Treads . | . . Leg . | . . Wheel 3 | 2 1 Hover . | . . Flight . | . . Utility 4 | 2 2 Device 2 | 1 1 Storage 2 | 1 1 Processor . | . . Hackware . | . . Protection . | . . Artifact . | . . Weapon 4 | 2 2 Energy Gun 1 | . 1 Energy Cannon . | . . Ballistic Gun 2 | 2 . Ballistic Cannon . | . . Launcher . | . . Special Weapon 1 | . 1 Impact Weapon . | . . Slashing Weapon . | . . Piercing Weapon . | . . Special Melee Weapon . | . . Unidentified Prototypes . | . . Parts Lost 3 | . 3 Power 1 | . 1 Propulsion 1 | . 1 Utility . | . . Weapon 1 | . 1 Highest Loss Streak 2 | . 2 To Critical Strikes . | . . Average Slot Usage (%) 100 | . 100 Engine 14 | . 14 Wheel 28 | . 28 Device 14 | . 14 Storage 14 | . 14 Energy Gun 12 | . 12 Ballistic Gun 14 | . 14 Naked Turns . | . . Heaviest Build 88 | 12 88 Greatest Support 32 | 32 32 Greatest Overweight (x) 5 | . 5 Average Overweight (x) 1 | . 1 Largest Inventory Capacity 25 | 8 25 Average Capacity 19 | 7 21 Most Carried 20 | 7 20 Average Carried 12 | 3 13 Final Capacity 25 | 8 25 Final Carried 20 | 6 20 Class Distribution -------------------- 100% | Mutant Dominant Class ---------------- Mutant | -10/Materials Resources | -11 -10 ----------- Run | Jun Mat Matter Collected 500 | 342 158 Remotely . | . . Salvage Created 511 | 166 345 Parts 39 | 16 23 Haulers Intercepted . | . . Recyclers Shooed 1 | . 1 Parts Field Recycled . | . . Retrieved Matter . | . . Parts Self-Destructed . | . . Prevented . | . . Kills | -11 -10 ------- Run | Jun Mat Combat Hostiles Destroyed 12 | . 12 Guns 12 | . 12 Classes Destroyed 5 | 3 2 Worker 3 | 2 1 Tunneler 3 | 3 . Recycler 1 | 1 . Swarmer 6 | . 6 Grunt 6 | . 6 Best Kill Streak 3 | 3 3 Combat Bots Only 3 | . 3 Max Kills in Single Turn 2 | 1 2 Gunslinging 1 | . 1 Exploded . | . . Melee . | . . Uniques/NPCs Destroyed . | . . Combat | -11 -10 -------- Run | Jun Mat Damage Taken 524 | . 524 Core 250 | . 250 Absorbed by Shields . | . . Core Remaining (%) 100 | 100 . Volleys Fired 59 | 18 41 Largest 2 | 2 2 Hottest 70 | 40 70 Shots Fired 115 | 36 79 Gun 112 | 36 76 Cannon . | . . Launcher . | . . Special 3 | . 3 Kinetic 74 | 36 38 Thermal 41 | . 41 Explosive . | . . Electromagnetic . | . . Robot Hit Streak 12 | 8 12 Robot Miss Streak 3 | 3 2 Penetration Max . | . . Secondary Targets 2 | . 2 Max Gunslinging Chain 1 | . 1 Shots Hit Robots 74 | 20 54 Core Hits 31 | 8 23 Critical Kills . | . . Critical Parts Destroyed . | . . Critical Strikes 4 | . 4 Burn 4 | . 4 Melee Attacks . | . . Impact . | . . Slashing . | . . Piercing . | . . Sneak Attacks . | . . Combat Hostiles . | . . Follow-up Attacks . | . . Damage Inflicted 882 | 220 662 Guns 878 | 220 658 Cannons . | . . Explosions . | . . Melee . | . . Ramming . | . . Kinetic 552 | 220 332 Thermal 330 | . 330 Explosive . | . . Electromagnetic . | . . Impact . | . . Slashing . | . . Piercing . | . . Highest Corruption . | . . Average Corruption . | . . Corruption Purged . | . . Corruption Blocked . | . . Overload Shots . | . . Overflow Damage . | . . Projectiles . | . . Explosions . | . . Melee . | . . Knockbacks . | . . Impact . | . . Kinetic . | . . Secondary . | . . Self-Inflicted Damage . | . . Shots . | . . Rammed . | . . Targets Rammed . | . . Kicked . | . . Crushed . | . . Highest Temperature 72 | . 72 Average Temperature 20 | . 20 Received Heat Transfer 96 | . 96 Siege Activations . | . . Robots Corrupted . | . . Combat Hostiles . | . . Parts Fried . | . . Impact Corruptions . | . . Robots Melted . | . . Combat Hostiles . | . . Parts Melted 3 | . 3 Heat Transferred 1283 | . 1283 Parts Sabotaged . | . . Parts Stolen . | . . Parts Stripped . | . . Power Chain Reactions . | . . Missiles Intercepted . | . . Alert | -11 -10 ------- Run | Jun Mat Peak Influence 190 | 30 190 Initial 19 | . 19 Average 74 | 11 85 Maximum Alert Level . | . . Low Security (%) 100 | 100 100 Level 1 . | . . Level 2 . | . . Level 3 . | . . Level 4 . | . . Level 5 . | . . High Security . | . . Max Security . | . . Squads Dispatched 2 | . 2 Investigation 2 | . 2 Extermination . | . . Reinforcement . | . . Assault . | . . Garrison . | . . Intercept . | . . Searches Triggered . | . . Construction Impeded . | . . Haulers Reinforced . | . . Active Scanning Responses . | . . Cargo Convoy Interrupts . | . . Stealth | -11 -10 --------- Run | Jun Mat Distress Signals . | . . Communications Jammed . | . . Distress Signals . | . . Times Spotted 19 | . 19 Peak Tracking Total 4 | . 4 Tactical Retreats 2 | . 2 Traps | -11 -10 ------- Run | Jun Mat Traps Triggered 4 | . 4 Indirectly . | . . Trap Hack Attempts . | . . Triggered . | . . Disarmed . | . . Reprogrammed . | . . Reused . | . . Traps Extracted . | . . Installed . | . . Triggered . | . . Machines | -11 -10 ---------- Run | Jun Mat Machines Disabled . | . . Max in Single Turn . | . . Machines Repaired . | . . Machines Sabotaged . | . . Overloaded Fab Kills . | . . Hacking | -11 -10 --------- Run | Jun Mat Machines Accessed . | . . Terminals . | . . Fabricators . | . . Repair Stations . | . . Recycling Units . | . . Scanalyzers . | . . Garrison Access . | . . Total Hacks . | . . Successful . | . . Failed . | . . Catastrophic . | . . Database Lockouts . | . . Manual . | . . Terminals . | . . Fabricators . | . . Repair Stations . | . . Recycling Units . | . . Scanalyzers . | . . Garrison Access . | . . Terminal Hacks . | . . Fabricator Hacks . | . . Repair Station Hacks . | . . Recycling Unit Hacks . | . . Scanalyzer . | . . Garrison Access Hacks . | . . Unauthorized Hacks . | . . Terminals . | . . Fabricators . | . . Repair Stations . | . . Recycling Units . | . . Scanalyzers . | . . Garrison Access . | . . Data Cores Recovered . | . . Used . | . . Hacking Detections . | . . Full Trace Events . | . . Feedback Events . | . . Feedback Blocked . | . . Robot Schematics Acquired . | . . Robots Built . | . . Authchips . | . . Time . | . . Total Robot Build Rating . | . . Part Schematics Acquired . | . . Parts Built . | . . Authchips . | . . Time . | . . Total Part Build Rating . | . . Parts Repaired . | . . Time . | . . Parts Recycled . | . . Recycled Matter . | . . Retrieved Matter . | . . Retrieved Components . | . . Parts Scanalyzed . | . . Part Schematics Acquired . | . . Parts Damaged . | . . Bothacking | -11 -10 ------------ Run | Jun Mat Used RIF Installer . | . . Robots Hacked . | . . Non-combat . | . . Combat . | . . Robot Hacks Applied . | . . Relay Couplers Released . | . . Fabnet Peak Effective % . | . . Robots Rewired . | . . Allies Hacked . | . . Hacks Repelled . | . . Allies | -11 -10 -------- Run | Jun Mat Total Allies . | . . Largest Group . | . . Highest-Rated Group . | . . Highest-Rated Ally . | . . Total Orders . | . . Ally Attacks . | . . Total Damage . | . . Kills . | . . Allies Corrupted . | . . Allies Melted . | . . Intel | -11 -10 ------- Run | Jun Mat Robot Analysis Total . | . . Derelict Logs Recovered . | . . Drone Launches . | . . Drone Recoveries . | . . Exploration | -11 -10 ------------- Run | Jun Mat Turns Passed 1045 | 156 889 Spaces Moved 635 | 84 551 Core 1 | 1 . Treads . | . . Legs . | . . Wheels 634 | 83 551 Hover . | . . Flight . | . . Fastest Speed 50 | 50 100 Average Speed 119 | 99 122 Slowest Speed 175 | 100 175 Overloaded Moves . | . . Propulsion Burnouts . | . . Robots Hopped . | . . Cave-ins Triggered . | . . Exploration Rate (%) 40 | 4 77 Regions Visited 1 Branch Regions . Pre-discovered Areas . | . . Known Exits Taken . | . . Unknown Exits Taken 1 | 1 . Scrap Searched . | . . Spaces Dug . | . . Terrain Destroyed . | . . Melee . | . . Projectile . | . . AOE . | . . Terrain Rammed . | . . Walls Destroyed . | . . Machines Disabled . | . . Actions | -11 -10 --------- Run | Jun Mat Total 809 | 122 687 Wait 74 | 3 71 Move 634 | 83 551 Hop . | . . Pick Up 25 | 9 16 Fast Attach 7 | 6 1 Attach 2 | 1 1 Detach . | . . Swap 3 | . 3 Drop 5 | 2 3 Fire 59 | 18 41 Melee . | . . Ram . | . . Kick . | . . Crush . | . . Escape Stasis . | . . Rewire . | . . Trap . | . . Miscellaneous . | . . Route ------- -11/Junkyard -10/Materials (discovered 4 exits: [*Mat x2] / [*Min x2]) History --------- Turn | Location | Event 38 | -11/Junkyard | Discovered new exit (range 14) 157 | -11/Junkyard | Entered Materials 316 | -10/Materials | Discovered new exit (range 14) 338 | -10/Materials | Build established: Mutant 501 | -10/Materials | Discovered new exit (range 14) 621 | -10/Materials | Discovered new exit (range 6) 837 | -10/Materials | Discovered new exit (range 11) 1046 | -10/Materials | Destroyed by EMP Trap Last Messages --------------- 00837_ EXIT=FOUND 01001_ Acquired Lgt. Treads. 01009_ W-16 Scout suffers critical hit (Burn). 01021_ Triggered Explosive Trap. 01021_ An explosion rips through the floor. 01022_ K-01 Serf cleans the Terminal. 01031_ K-01 Serf destroyed. 01037_ Acquired 12 matter. 01046_ Triggered EMP Trap. 01046_ A bubble of electromagnetic force engulfs the area. 01046_ EMP Trap short circuited. 01046_ Door malfunctions. 01046_ A bubble of electromagnetic force engulfs the area. 01046_ K-01 Serf destroyed. 01046_ Chain reaction triggered in Lgt. Ion Engine. 01046_ Nuclear Reactor explodes. 01046_ EMP Trap short circuited. 01046_ Chain reaction triggered in Lgt. Ion Engine. 01046_ Med. Laser destroyed. 01046_ A bubble of electromagnetic force engulfs the area. Map ----- +----------------------------------------------------+ | """ # + + """ """ ##?## ##??? | | """ # """ #### ##?## ##??? | | # """ ################## ##??? | | ###### """ ########## # ##??? | | "???## ##???????# # ##??? | | "####! ########## # ##### | | "#######+############ #####+##### | | # ## | | # """ ## | | + """ ## | | # ####+############ # """ ## | | ### ## !# ## # ## | | ## # ?????## # ## | | ## !!! # ?????## # ! ## | | #### ## !!! # ## # ! ## | | ####+## !!! ###+##### # ## | | ## + #+######### | | """" ######### ######### | | """" ######### ####???? | | """" + w ######?? | | ######### ######### ####?? | | ############## ######## ###? | | ######?????## # ! ###? | | ???????????? # ##? | | ???????? + ""T"" ##? | | ?????????? # """"" @ ##? | | ????????????#### % ##? | | ???????????? ######## ##? | | ?????????????? # ##? | | ????????????????????""" ##? | | ??????????????????? """ ##? | | ??????????????????[ """ ##? | | ?????????????????[[ ###? | | ???????????????? ???""" ###? | | ?????????????????????"" # ### ##?? | | ?????????????????????"" # ### ##?? | | ????????????????????? # ##?####?? | | ?????????????????????#### ? ###?? | | ?????????????????????#### ???????? | | ????????????????????????? ???????? | | ????????????????????????? ???????? | | ???????????????????????????????????? | | ???????????????????????????????????? | | ???????????????????????????????????? | | ???????????????????????????????????? | | | | | | | | | | | +----------------------------------------------------+ Best States ------------- Heat Dissipation 25 Energy Generation 10 Energy Capacity 125 Matter Stores 300 Matter Capacity 300 Sight Range 16 Terrain Scan Range 16 Terrain Scan Density 10 Evasion (%) 40 Item Schematics ----------------- None Robot Schematics ------------------ None Fabricated ------------ Nothing Alien Tech Used ----------------- None Achievements -------------- None Challenges ------------ None Game ------ Seed DecoyMolecularLeg Manual? 0 Play Time 00:10:42 Cumulative 57.9 hours Start 2023.08.14 @ 17:33:07 End 2023.08.14 @ 17:43:24 Sessions 1 Manual Loads 0 Difficulty Rogue Special Mode None Game No. 44 Rogue 44 Adventurer 0 Explorer 0 Win Type - Total 0 Types 0/0/0/0/0/0/0/0/0 Lore% 30 Gallery% 35 Achievement% 30 Wizard Run 0 Options --------- ASCII 0 Keyboard 0 Movement Mouse Keybinds 0 Fullscreen 2 Font 18/Terminus Map View 76x50 Tactical HUD 1 Map Filters NONE Filters NONE Steam 1 RUN: 1ac49ec1-4742-4ed7-8ea7-8e168c82757a